bitfinex-derivatives/quotes_ETHF0:USTF0_20260120
["timestamp","ask_amount","ask_price","bid_price","bid_amount"]
[1768901991012,0.00331834,3097.5,3096.5,1.22583978]
[1768901991216,0.00331834,3097.5,3096.2,4.29650931]
[1768901992626,0.00331834,3097.5,3096.8,1.22583978]
[1768901994215,0.00331834,3097.5,3096.2,3.07066953]
[1768901994523,0.00331834,3097.5,3096.7,1.22583978]
[1768901997723,3.04375449,3097.9,3097.0,1.22583978]
[1768901997923,3.39453,3098.2,3097.0,1.22583978]
[1768901998516,6.23241941,3098.2,3097.0,1.22583978]
[1768901998917,6.23618082,3098.2,3097.0,1.22583978]
[1768902002123,3.00318082,3098.2,3097.0,1.22583978]
[1768902002318,3.00318082,3098.2,3096.5,2.9693574]
[1768902002522,3.00318082,3098.2,3096.7,1.22583978]
[1768902002723,2.83788941,3098.0,3096.2,0.16163]
[1768902003030,4.06372919,3097.6,3096.3,1.22583978]
[1768902003227,2.83788941,3097.6,3096.3,1.22583978]
[1768902004924,2.83788941,3097.6,3096.4,1.22583978]
[1768902005228,2.83788941,3097.4,3096.1,1.22583978]
[1768902006218,2.83788941,3097.4,3096.2,1.22583978]
[1768902007333,0.16156,3097.6,3096.5,1.22583978]
[1768902007532,2.99944941,3097.6,3096.3,1.22583978]
[1768902010243,2.99942941,3098.1,3096.2,2.9693574]
[1768902010429,2.83788941,3097.9,3096.6,1.22583978]
[1768902010629,0.84085067,3097.8,3096.6,1.22583978]
[1768902010832,3.67874008,3097.8,3096.6,1.22583978]
[1768902011134,2.83788941,3097.8,3096.2,2.9693574]
[1768902011435,0.84101982,3097.7,3096.2,2.9693574]
[1768902011636,2.83788941,3097.8,3096.2,2.9693574]
[1768902012341,0.84104196,3097.7,3096.2,2.9693574]
[1768902012637,2.83788941,3097.8,3096.2,2.9693574]
[1768902012837,0.84107267,3097.7,3096.2,2.9693574]
[1768902013038,2.83788941,3097.8,3096.2,2.9693574]
[1768902013336,0.84106372,3097.7,3096.2,2.9693574]
[1768902013537,2.83788941,3097.8,3096.2,2.9693574]
[1768902013734,0.84107258,3097.7,3096.2,2.9693574]
[1768902014033,2.83788941,3097.8,3096.2,2.9693574]
[1768902014233,0.84108136,3097.7,3096.2,2.9693574]
[1768902014439,2.83788941,3097.8,3096.2,2.9693574]
[1768902015334,2.83788941,3097.6,3096.2,2.9693574]
[1768902015542,2.83788941,3097.6,3096.0,3.05830852]
[1768902015838,2.83788941,3097.6,3096.0,0.16165]
[1768902016339,2.83788941,3097.6,3096.0,3.05830852]
[1768902017243,2.83788941,3097.6,3096.0,0.16165]
[1768902018436,2.83788941,3097.6,3096.0,3.05830852]
[1768902022342,2.83788941,3097.6,3096.0,6.02766592]
[1768902022538,0.16156,3097.7,3096.1,2.9693574]
[1768902022745,0.83970403,3097.6,3096.1,2.9693574]
[1768902022945,0.16156,3097.7,3096.1,2.9693574]
[1768902023145,0.16156,3097.7,3096.4,1.22487812]
[1768902023748,0.16156,3097.7,3096.4,4.28809494]
[1768902026354,0.16156,3097.7,3096.5,3.06321682]
[1768902026749,2.83788941,3098.0,3096.5,3.06321682]
[1768902026952,3.06122551,3097.8,3096.4,2.078]
[1768902027149,3.06122551,3097.6,3096.1,3.22485682]
[1768902027350,3.06122551,3097.6,3096.2,2.078]
[1768902030459,0.16155,3097.8,3096.3,3.06321682]
[1768902030660,0.83974897,3097.7,3096.4,3.06321682]
[1768902030859,0.16155,3097.8,3096.4,3.06321682]
[1768902031061,0.83966583,3097.7,3096.4,3.06321682]
[1768902031253,0.16155,3097.8,3096.4,3.06321682]
[1768902031452,0.83918832,3097.7,3096.4,3.06321682]
[1768902031653,0.16155,3097.8,3096.4,3.06321682]
[1768902031861,0.83922108,3097.7,3096.4,3.06321682]
[1768902032047,0.16155,3097.8,3096.4,3.06321682]
[1768902032253,0.83922321,3097.7,3096.4,3.06321682]
[1768902032461,3.06122551,3098.0,3096.4,3.06321682]
[1768902032754,0.8396954,3097.9,3096.4,3.06321682]
[1768902032959,3.06122551,3098.0,3096.7,1.22487812]
[1768902033147,0.00376141,3098.2,3096.7,1.22487812]
[1768902033451,1.17107058,3098.1,3096.7,1.22487812]
[1768902033646,0.83954882,3098.0,3096.7,1.22487812]
[1768902033853,3.06498692,3098.2,3096.4,3.22483682]
[1768902034153,3.90077518,3098.1,3096.4,3.22483682]
[1768902034352,0.83954967,3098.0,3096.4,3.22483682]
[1768902034553,3.06122551,3098.1,3096.4,3.22483682]
[1768902034757,0.83941373,3098.0,3096.4,3.22483682]
[1768902034957,3.06122551,3098.1,3096.4,3.22483682]
[1768902035164,0.83941319,3098.0,3096.4,3.22483682]
[1768902035460,3.06122551,3098.1,3096.4,3.22483682]
[1768902035663,0.83930667,3098.0,3096.4,3.22483682]
[1768902035863,3.06122551,3098.1,3096.4,3.22483682]
[1768902042367,3.06122551,3098.1,3096.5,2.076]
[1768902048168,3.06122551,3098.1,3096.4,3.22483682]
[1768902048469,3.06122551,3098.1,3096.5,2.078]
[1768902051271,3.8864079,3098.0,3096.5,2.078]
[1768902051473,3.04836433,3098.0,3096.5,2.078]
[1768902052264,0.16529141,3098.2,3096.1,4.05532194]
[1768902052265,3.20993433,3097.6,3096.1,4.05532194]
[1768902052463,3.04836433,3097.4,3095.7,6.359]
[1768902052768,3.04836433,3097.2,3095.5,5.14550112]
[1768902053572,3.20995433,3097.2,3095.5,5.14550112]
[1768902055068,3.20995433,3097.2,3095.6,2.85789014]
[1768902055369,3.03374649,3097.7,3095.9,2.85789014]
[1768902055582,1.16912678,3097.6,3095.9,2.85789014]
[1768902055774,0.83784428,3097.5,3095.9,2.85789014]
[1768902055971,0.83784428,3097.4,3095.9,2.85789014]
[1768902056169,3.03374649,3097.7,3095.9,2.85789014]
[1768902056470,0.837672,3097.6,3095.9,2.85789014]
[1768902056672,0.837672,3097.5,3095.9,2.85789014]
[1768902056973,3.03374649,3097.7,3095.9,2.85789014]
[1768902057272,3.70981616,3097.6,3095.9,2.85789014]
[1768902057472,0.83762967,3097.5,3095.9,2.85789014]
[1768902057667,2.87218649,3097.6,3095.9,2.85789014]
[1768902057863,0.83752827,3097.5,3095.9,2.85789014]
[1768902058069,2.87218649,3097.6,3095.9,2.85789014]
[1768902058264,0.83752912,3097.5,3095.9,2.85789014]
[1768902058461,2.87218649,3097.6,3095.9,2.85789014]
[1768902058663,0.83743543,3097.5,3095.9,2.85789014]
[1768902058863,2.87218649,3097.6,3095.9,2.85789014]
[1768902059065,0.83743435,3097.5,3095.9,2.85789014]
[1768902059260,2.87218649,3097.6,3095.9,2.85789014]
[1768902061377,2.87218649,3097.4,3095.7,2.85789014]
[1768902062577,3.03376649,3097.4,3095.7,2.85789014]
[1768902063277,2.87218649,3097.8,3096.4,1.22487812]
[1768902063478,2.87218649,3097.8,3096.4,4.08276826]
[1768902065076,0.16154,3098.0,3096.5,2.85789014]
[1768902066175,3.03372649,3098.0,3096.5,2.85789014]
[1768902066478,3.03372649,3098.0,3096.1,2.85789014]
[1768902066479,2.87218649,3097.8,3096.1,2.85789014]
[1768902068677,0.16154,3098.0,3096.5,2.85789014]
[1768902069378,3.03372649,3098.0,3096.1,5.09853014]
[1768902069575,2.87218649,3097.8,3096.1,5.09853014]
[1768902069978,2.87218649,3097.8,3096.1,3.01953014]
[1768902072883,2.87218649,3097.8,3096.6,1.22479257]
[1768902076383,0.16155,3097.9,3096.6,1.22479257]
[1768902077280,0.16155,3097.9,3096.9,1.22479257]
[1768902079281,3.03373649,3097.9,3096.6,1.22479257]
[1768902080188,3.03373649,3097.9,3096.1,5.13529852]
[1768902080389,3.03373649,3097.9,3096.5,1.22479257]
[1768902082488,2.87218649,3097.7,3096.2,2.85789014]
[1768902082686,2.87218649,3097.7,3096.2,4.08268271]
[1768902085086,2.87218649,3097.7,3096.2,2.85789014]
[1768902085286,2.87218649,3097.7,3096.3,1.22479257]
[1768902089506,1.73543366,3098.2,3096.1,2.89665852]
[1768902089507,3.03128073,3097.4,3096.1,2.89665852]
[1768902089805,4.2560733,3097.2,3095.8,5.79657498]
[1768902091114,3.03128073,3097.2,3096.0,1.22479257]
[1768902091407,3.03128073,3097.2,3096.3,1.22479257]
[1768902091607,0.16157,3097.5,3096.3,1.22479257]
[1768902092414,0.83582909,3097.4,3096.3,1.22479257]
[1768902092607,0.16157,3097.5,3096.3,1.22479257]
[1768902092913,0.83591838,3097.4,3096.3,1.22479257]
[1768902093211,0.16157,3097.5,3096.3,1.22479257]
[1768902093410,0.83614275,3097.4,3096.3,1.22479257]
[1768902093605,0.16157,3097.5,3096.3,1.22479257]
[1768902093806,0.83605883,3097.4,3096.3,1.22479257]
[1768902094007,0.16157,3097.5,3096.3,1.22479257]
[1768902094204,0.83609563,3097.4,3096.3,1.22479257]
[1768902094404,0.16157,3097.5,3096.3,1.22479257]
[1768902094607,0.83603764,3097.4,3096.3,1.22479257]
[1768902094805,0.16157,3097.5,3096.3,1.22479257]
[1768902095704,0.16157,3097.5,3096.7,1.22479257]
[1768902097517,3.03128073,3098.0,3096.7,1.22479257]
[1768902097717,1.17099938,3097.9,3096.7,1.22479257]
[1768902098013,1.17099938,3097.8,3096.7,1.22479257]
[1768902098317,1.17099938,3097.7,3096.7,1.22479257]
[1768902098515,0.83895005,3097.6,3096.7,1.22479257]
[1768902098712,3.03128073,3098.0,3096.7,1.22479257]
[1768902098910,1.17098925,3097.9,3096.7,1.22479257]
[1768902099114,1.17098925,3097.8,3096.7,1.22479257]
[1768902099315,1.17098925,3097.7,3096.7,1.22479257]
[1768902099512,0.8389428,3097.6,3096.7,1.22479257]
[1768902099705,3.03128073,3098.0,3096.7,1.22479257]
[1768902099915,3.03128073,3097.8,3096.4,1.22479257]
[1768902100112,1.17084752,3097.7,3096.4,1.22479257]
[1768902100308,0.83884121,3097.6,3096.4,1.22479257]
[1768902100516,3.03128073,3097.8,3096.4,1.22479257]
[1768902100716,1.17074262,3097.7,3096.4,1.22479257]
[1768902101015,0.83876595,3097.6,3096.4,1.22479257]
[1768902101215,3.03128073,3097.8,3096.4,1.22479257]
[1768902101519,3.03128073,3097.6,3096.2,1.22479257]
[1768902103816,1.38635257,3097.7,3096.2,1.22479257]
[1768902103817,0.83877247,3097.5,3096.2,1.22479257]
[1768902104018,2.91376335,3097.5,3096.2,1.22479257]
[1768902104823,4.13855592,3097.4,3095.9,4.12145109]
[1768902106918,2.91376335,3097.3,3095.9,2.89665852]
[1768902107114,1.22479257,3097.1,3095.8,2.89991646]
[1768902107422,1.22479257,3097.1,3095.8,4.12470903]
[1768902107816,3.07534335,3097.3,3095.8,4.12470903]
[1768902110919,3.75223045,3097.2,3095.8,4.12470903]
[1768902111121,2.91376335,3097.2,3095.8,4.12470903]
[1768902114523,2.91376335,3097.2,3095.8,2.89991646]
[1768902114724,2.8527701,3097.0,3095.6,4.97365852]
[1768902117824,2.8527701,3097.0,3095.7,1.22479257]
[1768902118526,2.8527701,3097.0,3095.6,6.19845109]
[1768902118826,2.8527701,3097.0,3095.6,3.30179257]
[1768902119220,2.8527701,3097.0,3095.4,5.66416557]
[1768902119419,2.8527701,3096.7,3095.4,2.76750705]
[1768902122220,2.8527701,3096.7,3095.4,0.00395747]
[1768902124126,1.22479257,3096.2,3095.4,0.00395747]
[1768902124624,4.07756267,3096.2,3094.6,2.76354958]
[1768902124826,2.8527701,3096.1,3094.7,1.22479257]
[1768902125221,2.8527701,3096.1,3094.6,4.84054958]
[1768902125431,2.8527701,3096.1,3094.7,1.22479257]
[1768902125623,2.8527701,3096.1,3094.7,1.22895619]
[1768902125933,3.0144101,3096.1,3094.7,0.00416362]
[1768902126130,3.0144101,3096.1,3094.7,1.22895619]
[1768902129735,3.0144101,3096.1,3095.0,1.22479257]
[1768902130236,3.0144101,3096.1,3094.8,1.22479257]
[1768902132933,3.0144101,3096.1,3094.7,0.00416362]
[1768902133131,4.0790477,3095.9,3094.7,0.00416362]
[1768902133438,3.0144301,3095.7,3094.7,0.00416362]
[1768902133825,2.8527701,3095.5,3093.9,2.76354958]
[1768902134131,0.16169,3095.2,3093.9,2.76354958]
[1768902135036,0.16169,3095.2,3093.9,2.76643113]
[1768902135426,0.16166,3095.7,3093.9,2.76643113]
[1768902135632,0.16166,3095.7,3094.1,2.76354958]
[1768902136535,3.0144301,3095.7,3093.9,0.00288155]
[1768902137634,2.8527701,3095.5,3093.9,0.00288155]
[1768902137942,3.0144501,3095.3,3093.9,0.00288155]
[1768902141038,2.8527701,3094.9,3093.2,2.92533958]
[1768902141937,2.8527701,3094.9,3093.2,2.92927901]
[1768902144344,0.1617,3095.0,3093.7,2.87381309]
[1768902144539,2.9343229,3095.3,3094.1,1.2262776]
[1768902145042,0.16167,3095.6,3094.1,1.2262776]
[1768902145043,2.9343229,3095.6,3094.2,2.87381309]
[1768902146536,0.0034948,3095.9,3094.6,3.03553309]
[1768902146848,0.1616,3096.9,3094.6,3.03553309]
[1768902146849,0.1616,3096.9,3095.0,2.87381309]
[1768902147145,0.42102047,3096.9,3095.0,2.87381309]
[1768902147445,0.1616,3096.9,3095.0,2.87381309]
[1768902147952,0.16526567,3096.9,3095.0,2.87381309]
[1768902149743,0.00366567,3096.9,3095.0,2.87381309]
[1768902150039,0.00366567,3096.9,3094.8,2.074]
[1768902150040,0.00366567,3096.9,3095.2,2.87381309]
[1768902150349,0.00366567,3096.9,3095.2,3.03550309]
[1768902152749,0.00366567,3096.9,3095.2,2.87381309]
[1768902154047,2.93798857,3096.9,3095.2,2.87381309]
[1768902155549,0.16161,3096.7,3095.2,2.87381309]
[1768902170757,0.00366567,3096.9,3095.2,2.87381309]
[1768902172360,0.00366567,3096.9,3095.6,3.11276781]
[1768902172561,0.00366567,3096.9,3095.6,3.1164109]
[1768902177069,0.84283922,3096.8,3095.6,3.1164109]
[1768902177364,0.00366567,3096.9,3095.6,3.1164109]
[1768902177563,0.84285034,3096.8,3095.6,3.1164109]
[1768902177867,0.00366567,3096.9,3095.6,3.1164109]
[1768902178068,0.84285172,3096.8,3095.6,3.1164109]
[1768902178365,0.00366567,3096.9,3095.6,3.1164109]
[1768902178664,0.84283675,3096.8,3095.6,3.1164109]
[1768902178862,0.00366567,3096.9,3095.6,3.1164109]
[1768902179065,0.84283416,3096.8,3095.6,3.1164109]
[1768902179265,0.00366567,3096.9,3095.6,3.1164109]
[1768902179466,0.8428283,3096.8,3095.6,3.1164109]
[1768902179663,0.84277219,3096.7,3095.6,0.00364309]
[1768902179854,0.84271316,3096.6,3095.6,0.00364309]
[1768902180058,1.00425705,3096.5,3095.6,0.00364309]
[1768902180271,0.84263705,3096.4,3095.6,0.00364309]
[1768902180464,0.16162,3096.5,3095.6,0.00364309]
[1768902180663,0.16163,3096.3,3094.8,3.13509495]
[1768902181866,0.84255495,3096.2,3094.8,3.13803797]
[1768902182169,2.56164365,3096.1,3094.8,3.13803797]
[1768902182372,0.84271258,3096.0,3094.8,0.00294302]
[1768902183971,0.16164,3096.1,3094.8,0.00294302]
[1768902184671,0.84208646,3096.0,3094.8,0.00294302]
[1768902184863,0.16164,3096.1,3094.8,0.00294302]
[1768902185063,0.84224098,3096.0,3094.8,0.00294302]
[1768902185264,0.16165,3096.0,3094.8,0.00294302]
[1768902187279,0.16166,3095.8,3094.8,0.00294302]
[1768902192068,2.97893042,3096.6,3094.8,3.13803797]
[1768902192273,0.16164,3096.1,3094.8,3.13803797]
[1768902192475,0.16164,3096.1,3094.8,0.00294302]
[1768902192675,3.14057042,3096.1,3094.8,0.00294302]
[1768902193180,1.22581566,3095.7,3094.4,3.13509495]
[1768902194283,1.22581566,3095.7,3094.4,3.13800419]
[1768902194483,0.16166,3095.8,3094.4,3.13800419]
[1768902194885,1.22666822,3095.7,3094.4,3.13800419]
[1768902197281,1.22666822,3095.4,3094.4,3.13800419]
[1768902197693,1.22666822,3095.4,3094.4,0.00290924]
[1768902197986,1.22666822,3095.4,3093.3,0.16179]
[1768902197987,1.22666822,3094.8,3093.4,3.13509495]
[1768902198386,1.22666822,3094.8,3093.6,3.13509495]
[1768902198586,1.22666822,3095.1,3093.6,3.13509495]
[1768902198974,1.22666822,3095.1,3093.6,3.13809503]
[1768902201284,1.22666822,3094.8,3093.6,3.13809503]
[1768902201894,1.38835822,3095.1,3093.6,3.13809503]
[1768902207086,1.22666822,3094.8,3093.6,3.13809503]
[1768902208499,1.22666822,3094.5,3093.6,0.00300008]
[1768902208701,1.23015465,3094.5,3093.6,0.00300008]
[1768902209299,0.00348643,3094.5,3093.6,0.00300008]
[1768902210696,0.00348643,3094.5,3093.6,3.28160096]
[1768902213013,0.00348643,3094.5,3093.6,0.00300008]
[1768902213809,0.00348643,3094.5,3093.6,3.28160096]
[1768902213998,0.00348643,3094.5,3093.9,4.5052691]
[1768902214300,0.16169,3095.2,3093.9,3.27860088]
[1768902214504,0.16169,3095.2,3094.2,3.27860088]
[1768902214708,0.16166,3095.7,3094.5,3.27860088]
[1768902214894,1.82,3096.2,3094.5,3.27860088]
[1768902215098,0.84010765,3096.1,3094.8,3.27860088]
[1768902215300,0.83993902,3096.0,3094.8,3.27860088]
[1768902215500,0.00232504,3096.0,3094.8,3.27860088]
[1768902219516,1.22666822,3095.9,3094.8,3.27860088]
[1768902222412,1.22899326,3096.0,3094.8,3.27860088]
[1768902227015,0.00232504,3096.0,3094.8,3.27860088]
[1768902231522,0.00232504,3096.0,3094.9,3.14060393]
[1768902232614,0.00232504,3096.0,3095.1,1.22666822]
[1768902232821,3.39562,3096.6,3095.2,3.14060393]
[1768902233118,0.84545918,3096.5,3095.2,3.14060393]
[1768902233421,3.39562,3096.6,3095.2,3.14060393]
[1768902233722,0.84532071,3096.5,3095.2,3.14060393]
[1768902233919,3.39914797,3096.6,3095.2,3.14060393]
[1768902234117,0.16514797,3096.6,3095.2,3.14060393]
[1768902235123,0.00352797,3096.6,3095.5,3.11446456]
[1768902235420,0.16159,3097.1,3096.1,3.11446456]
[1768902235718,3.234,3097.4,3096.1,3.11446456]
[1768902235925,0.84294033,3097.3,3096.1,3.11446456]
[1768902236112,3.234,3097.4,3096.1,3.11446456]
[1768902236317,3.23791392,3097.4,3096.1,3.11799024]
[1768902239521,3.39948392,3097.4,3096.1,3.11799024]
[1768902240220,4.62615214,3097.4,3096.1,3.11799024]
[1768902242220,0.16158,3097.3,3096.1,3.11799024]
[1768902242619,1.22666822,3096.7,3096.1,0.00352568]
[1768902243132,1.22666822,3096.7,3094.7,3.05836852]
[1768902243429,1.22666822,3096.4,3095.0,3.11446456]
[1768902243820,1.22666822,3096.7,3095.0,3.11446456]
[1768902244223,1.22666822,3096.7,3095.0,3.11864532]
[1768902244724,0.16162,3096.6,3095.0,3.11864532]
[1768902247832,0.16162,3096.5,3095.0,3.11864532]
[1768902248029,1.22666822,3096.4,3095.0,3.11864532]
[1768902248725,1.38828822,3096.5,3095.0,3.11864532]
[1768902252235,1.22666822,3096.2,3095.0,3.11864532]
[1768902252626,1.22666822,3095.9,3095.0,3.11864532]
[1768902253027,0.16164,3096.2,3095.0,3.11864532]
[1768902253028,1.38830822,3096.2,3095.0,3.11864532]
[1768902255025,0.16164,3096.2,3095.0,3.11864532]
[1768902257634,0.16165,3096.1,3095.0,3.11864532]
[1768902265147,0.16162,3096.5,3095.0,3.11864532]
[1768902265343,0.84431338,3096.4,3095.0,3.11864532]
[1768902265650,0.16162,3096.5,3095.0,3.11864532]
[1768902267237,0.84453119,3096.4,3095.0,3.11864532]
[1768902267437,0.16162,3096.5,3095.0,3.11864532]
[1768902267638,0.84452298,3096.4,3095.0,3.11864532]
[1768902267937,0.16162,3096.5,3095.0,3.11864532]
[1768902268136,0.84457957,3096.4,3095.0,3.11864532]
[1768902268335,0.16162,3096.5,3095.0,3.11864532]
[1768902268532,0.84473802,3096.4,3095.0,3.11864532]
[1768902268744,0.16162,3096.5,3095.0,3.11864532]
[1768902269043,0.84475015,3096.4,3095.0,3.11864532]
[1768902269241,0.16163,3096.4,3095.0,3.11864532]
[1768902271145,0.8453067,3096.3,3095.0,3.11864532]
[1768902271344,0.16163,3096.4,3095.0,3.11864532]
[1768902271544,0.84533837,3096.3,3095.0,3.11864532]
[1768902271744,0.16163,3096.3,3095.0,3.11864532]
[1768902272147,0.84573186,3096.2,3095.0,3.11864532]
[1768902272343,0.16163,3096.3,3095.0,3.11864532]
[1768902272542,0.84574607,3096.2,3095.0,3.11864532]
[1768902272743,0.16163,3096.3,3095.0,3.11864532]
[1768902272941,0.84574261,3096.2,3095.0,3.11864532]
[1768902273152,0.16163,3096.3,3095.0,3.11864532]
[1768902273347,0.8460625,3096.2,3095.0,3.11864532]
[1768902273549,0.16163,3096.3,3095.0,3.11864532]
[1768902273748,0.84608496,3096.2,3095.0,3.11864532]
[1768902273949,0.16163,3096.3,3095.0,3.11864532]
[1768902274150,0.84608229,3096.2,3095.0,3.11864532]
[1768902274348,0.16163,3096.3,3095.0,3.11864532]
[1768902274653,0.84617816,3096.2,3095.0,3.11864532]
[1768902274842,0.16163,3096.3,3095.0,3.11864532]
[1768902275044,0.84640652,3096.2,3095.0,3.11864532]
[1768902275239,0.84640652,3096.1,3095.0,3.11864532]
[1768902275539,0.16163,3096.3,3095.0,3.11864532]
[1768902275744,0.84664917,3096.2,3095.0,3.11864532]
[1768902275947,0.16163,3096.3,3095.0,3.11864532]
[1768902276148,0.84664937,3096.2,3095.0,3.11864532]
[1768902276450,0.84664937,3096.1,3095.0,3.11864532]
[1768902276753,0.16163,3096.3,3095.0,3.11864532]
[1768902276940,0.84582408,3096.2,3095.0,3.11864532]
[1768902277140,0.16163,3096.3,3095.0,3.11864532]
[1768902277343,0.84584243,3096.2,3095.0,3.11864532]
[1768902277546,0.16163,3096.3,3095.0,3.11864532]
[1768902278854,0.1616,3096.9,3095.0,3.11864532]
[1768902279055,1.17387687,3096.8,3095.0,3.11864532]
[1768902279253,1.17387687,3096.7,3095.0,3.11864532]
[1768902279454,0.84351094,3096.6,3095.0,3.11864532]
[1768902279754,0.16161,3096.8,3095.0,3.11864532]
[1768902279953,1.17399856,3096.7,3095.0,3.11864532]
[1768902280153,0.16161,3096.8,3095.0,3.11864532]
[1768902280154,0.84360011,3096.6,3095.0,3.11864532]
[1768902280354,0.16161,3096.8,3095.0,3.11864532]
[1768902280555,0.84353442,3096.7,3095.0,3.11864532]
[1768902280747,0.84353442,3096.6,3095.0,3.11864532]
[1768902280944,0.16161,3096.8,3095.0,3.11864532]
[1768902281143,0.8435299,3096.7,3095.0,3.11864532]
[1768902281350,0.8435299,3096.6,3095.0,3.11864532]
[1768902281554,0.16161,3096.8,3095.0,3.11864532]
[1768902281752,0.84350415,3096.7,3095.0,3.11864532]
[1768902281953,0.84350415,3096.6,3095.0,3.11864532]
[1768902282154,0.16161,3096.8,3095.0,3.11864532]
[1768902282353,1.00527283,3096.7,3095.0,3.11864532]
[1768902282657,0.84366283,3096.6,3095.0,3.11864532]
[1768902286266,0.16163,3096.4,3095.0,3.11864532]
[1768902286462,1.00529283,3096.3,3095.0,3.11864532]
[1768902286669,0.16163,3096.3,3095.0,3.11864532]
[1768902286963,0.84326724,3096.2,3095.0,3.11864532]
[1768902287161,0.16163,3096.3,3095.0,3.11864532]
[1768902287362,0.84298335,3096.2,3095.0,3.11864532]
[1768902287564,0.16163,3096.3,3095.0,3.11864532]
[1768902287861,0.84288726,3096.2,3095.0,3.11864532]
[1768902288061,0.16163,3096.3,3095.0,3.11864532]
[1768902288271,0.842888,3096.2,3095.0,3.11864532]
[1768902288471,0.16163,3096.3,3095.0,3.11864532]
[1768902288672,0.84288878,3096.2,3095.0,3.11864532]
[1768902288873,0.16163,3096.3,3095.0,3.11864532]
[1768902289075,0.84288621,3096.2,3095.0,3.11864532]
[1768902289272,0.16163,3096.3,3095.0,3.11864532]
[1768902289468,0.84289188,3096.2,3095.0,3.11864532]
[1768902289672,0.16163,3096.3,3095.0,3.11864532]
[1768902289873,0.84289443,3096.2,3095.0,3.11864532]
[1768902290175,0.16163,3096.3,3095.0,3.11864532]
[1768902290371,0.84293392,3096.2,3095.0,3.11864532]
[1768902290573,0.16163,3096.3,3095.0,3.11864532]
[1768902290774,0.84293238,3096.2,3095.0,3.11864532]
[1768902291074,0.16163,3096.3,3095.0,3.11864532]
[1768902291273,0.84294671,3096.2,3095.0,3.11864532]
[1768902291475,0.16163,3096.3,3095.0,3.11864532]
[1768902291668,0.84291507,3096.2,3095.0,3.11864532]
[1768902291868,0.16163,3096.3,3095.0,3.11864532]
[1768902292069,0.84292077,3096.2,3095.0,3.11864532]
[1768902292276,0.16163,3096.3,3095.0,3.11864532]
[1768902292477,0.84294992,3096.2,3095.0,3.11864532]
[1768902292678,0.16163,3096.3,3095.0,3.11864532]
[1768902292866,0.84295326,3096.2,3095.0,3.11864532]
[1768902293070,0.16163,3096.3,3095.0,3.11864532]
[1768902293277,0.84298324,3096.2,3095.0,3.11864532]
[1768902293478,0.16163,3096.3,3095.0,3.11864532]
[1768902293680,0.84297172,3096.2,3095.0,3.11864532]
[1768902293880,0.16163,3096.3,3095.0,3.11864532]
[1768902294183,0.84297145,3096.2,3095.0,3.11864532]
[1768902294381,0.16163,3096.3,3095.0,3.11864532]
[1768902294680,0.84300582,3096.2,3095.0,3.11864532]
[1768902294872,0.16163,3096.3,3095.0,3.11864532]
[1768902295072,0.84301074,3096.2,3095.0,3.11864532]
[1768902295279,0.16163,3096.3,3095.0,3.11864532]
[1768902295479,0.84302101,3096.2,3095.0,3.11864532]
[1768902295782,0.16163,3096.3,3095.0,3.11864532]
[1768902295982,0.84312816,3096.2,3095.0,3.11864532]
[1768902296278,0.16163,3096.3,3095.0,3.11864532]
[1768902296480,0.84310517,3096.2,3095.0,3.11864532]
[1768902296669,0.16163,3096.3,3095.0,3.11864532]
[1768902296875,0.84310202,3096.2,3095.0,3.11864532]
[1768902297081,0.16163,3096.3,3095.0,3.11864532]
[1768902297274,0.84310049,3096.2,3095.0,3.11864532]
[1768902297472,0.16163,3096.3,3095.0,3.11864532]
[1768902297670,0.84309808,3096.2,3095.0,3.11864532]
[1768902297873,0.16163,3096.3,3095.0,3.11864532]
[1768902298076,0.8431013,3096.2,3095.0,3.11864532]
[1768902298383,0.16163,3096.3,3095.0,3.11864532]
[1768902298583,0.843132,3096.2,3095.0,3.11864532]
[1768902298881,0.16163,3096.3,3095.0,3.11864532]
[1768902299079,0.84311966,3096.2,3095.0,3.11864532]
[1768902299282,0.16163,3096.3,3095.0,3.11864532]
[1768902299582,0.84311207,3096.2,3095.0,3.11864532]
[1768902299775,0.16163,3096.3,3095.0,3.11864532]
[1768902299975,0.84315351,3096.2,3095.0,3.11864532]
[1768902300174,0.16163,3096.3,3095.0,3.11864532]
[1768902300380,0.16161,3096.8,3095.2,3.48593696]
[1768902301579,0.16162,3096.6,3095.2,3.48593696]
[1768902302283,0.16162,3096.5,3095.2,3.48593696]
[1768902302481,0.16163,3096.4,3095.2,3.48593696]
[1768902302885,0.16163,3096.3,3095.0,0.00418076]
[1768902305987,0.16163,3096.3,3095.0,3.49011772]
[1768902310291,3.24152101,3096.8,3095.0,3.49011772]
[1768902310292,0.16161,3096.8,3095.0,3.49011772]
[1768902310597,0.33073843,3096.7,3095.0,3.49011772]
[1768902310793,0.33073457,3096.6,3095.0,3.49011772]
[1768902310998,0.33078048,3096.5,3095.0,3.49011772]
[1768902311201,3.24152101,3096.9,3095.0,3.49011772]
[1768902311402,0.33085731,3096.8,3095.0,3.49011772]
[1768902311700,0.33085731,3096.7,3095.0,3.49011772]
[1768902312001,0.16163,3096.3,3095.0,3.49011772]
[1768902315206,0.83321754,3096.2,3095.0,3.49011772]
[1768902315503,0.16163,3096.3,3095.0,3.49011772]
[1768902315703,0.83323807,3096.2,3095.0,3.49011772]
[1768902315905,0.16163,3096.3,3095.0,3.49011772]
[1768902316102,0.83353559,3096.2,3095.0,3.49011772]
[1768902316307,0.16163,3096.3,3095.0,3.49011772]
[1768902316497,0.83366045,3096.2,3095.0,3.49011772]
[1768902316698,0.16163,3096.3,3095.0,3.49011772]
[1768902316899,0.83366999,3096.2,3095.0,3.49011772]
[1768902317100,1.38784581,3096.3,3095.0,3.49011772]
[1768902317302,0.83368253,3096.2,3095.0,3.49011772]
[1768902317510,1.38784581,3096.3,3095.0,3.49011772]
[1768902317704,0.83371399,3096.2,3095.0,3.49011772]
[1768902317905,1.38784581,3096.3,3095.0,3.49011772]
[1768902318105,0.83375073,3096.2,3095.0,3.49011772]
[1768902318407,0.16163,3096.3,3095.1,3.48593696]
[1768902318602,0.83401835,3096.2,3095.1,3.48593696]
[1768902318798,0.16163,3096.3,3095.1,3.48593696]
[1768902318996,0.83402223,3096.2,3095.1,3.48593696]
[1768902319199,0.16163,3096.3,3095.1,3.48593696]
[1768902319411,0.8338748,3096.2,3095.1,3.48593696]
[1768902319610,0.16163,3096.3,3095.1,3.48593696]
[1768902319809,0.83365531,3096.2,3095.1,3.48593696]
[1768902320012,0.16163,3096.3,3095.1,3.48593696]
[1768902320206,0.83368428,3096.2,3095.1,3.48593696]
[1768902320511,1.22621581,3096.0,3095.1,3.48593696]
[1768902321914,1.38784581,3096.3,3095.1,3.48593696]
[1768902322214,0.83368482,3096.2,3095.1,3.48593696]
[1768902322414,1.38784581,3096.3,3095.1,3.48593696]
[1768902322615,0.83397968,3096.2,3095.1,3.48593696]
[1768902322810,1.38784581,3096.3,3095.1,3.48593696]
[1768902323011,0.83400032,3096.2,3095.1,3.48593696]
[1768902323210,1.38784581,3096.3,3095.1,3.48593696]